[Event "Israel Youth-ch U16 2025"]
[Site "Rishon Le Zion"]
[Date "2025.04.10"]
[Round "8.1"]
[White "Birka, Elia"]
[Black "Manyevich, Rom"]
[Result "1-0"]
[Annotator "ChessBase"]
[ECO "E74"]
[WhiteElo "2139"]
[BlackElo "1981"]
[PlyCount "65"]
[EventDate "2025.04.03"]
[EventType "swiss"]
[EventCountry "ISR"]
[SourceTitle "playchess.com"]
[Source "ChessBase"]
[SourceQuality "1"]
[TimeControl "5400+30"]

1. e4 {[%emt 0:00:19]} c5 {[%emt 0:00:21]} 2. Nf3 {[%emt 0:05:37]} d6 {[%emt 0:00:26]} 3. Bb5+ {[%emt 0:00:27]} Bd7 {[%emt 0:00:05]} 4. Bxd7+ {[%emt 0:00:17]} Nxd7 {[%emt 0:00:09]} 5. c4 {[%emt 0:02:59]} Ngf6 {[%emt 0:02:26]} 6. Nc3 {[%emt 0:00:31]} g6 {[%emt 0:00:12]} 7. d4 {[%emt 0:01:46]} cxd4 {[%emt 0:00:35]} 8. Nxd4 {[%emt 0:00:06]} Bg7 {[%emt 0:00:15]} 9. O-O {[%emt 0:04:51]} a6 {[%emt 0:02:12]} 10. Qe2 {[%emt 0:00:53]} Rc8 {[%emt 0:01:56]} 11. Be3 {[%emt 0:00:53]} O-O {[%emt 0:06:35]} 12. Rac1 {[%emt 0:03:59]} Qa5 {[%emt 0:03:59]} 13. b3 {[%emt 0:06:10]} Rfe8 {[%emt 0:01:41]} 14. Bd2 {[%emt 0:25:43]} Qb6 {[%emt 0:01:39]} 15. Nc2 {[%emt 0:01:03]} e6 {[%emt 0:08:55]} 16. Ne3 {[%emt 0:04:13]} Ne5 {[%emt 0:13:41]} 17. Rfd1 {[%emt 0:02:26]} Red8 {[%emt 0:10:29]} 18. Na4 {[%emt 0:11:11]} Qc7 {[%emt 0:07:59]} 19. f3 {[%emt 0:00:41]} Nc6 {[%emt 0:04:06]} 20. Bc3 {[%emt 0:00:54]} Qe7 {[%emt 0:03:48]} 21. Nb6 {[%emt 0:08:45]} Rb8 {[%emt 0:02:12]} 22. b4 {[%emt 0:01:54]} Nd7 {[%emt 0:08:23]} 23. Nxd7 {[%emt 0:00:17]} Rxd7 {[%emt 0:01:01]} 24. Bxg7 {[%emt 0:00:10]} Kxg7 {[%emt 0:00:18]} 25. b5 {[%emt 0:01:32]} Na7 {[%emt 0:02:46]} 26. Qb2+ {[%emt 0:00:39]} Qf6 {[%emt 0:00:21]} 27. e5 {[%emt 0:00:24]} Qg5 {[%emt 0:02:27]} 28. exd6+ {[%emt 0:00:19]} f6 {[%emt 0:00:36]} 29. Qd4 {[%emt 0:02:44]} Nc8 {[%emt 0:00:16]} 30. c5 {[%emt 0:00:15]} axb5 {[%emt 0:01:17]} 31. Qe4 {[%emt 0:01:15]} Kf7 {[%emt 0:02:28]} 32. Ng4 {[%emt 0:01:14]} Ra8 {[%emt 0:08:56]} 33. h4 {[%emt 0:01:02]} 1-0

[Event "Israel Youth-ch U16 2025"]
[Site "Rishon Le Zion"]
[Date "2025.04.10"]
[Round "8.2"]
[White "Afek, Itay"]
[Black "Azoulay, Yehonatan"]
[Result "1/2-1/2"]
[Annotator "ChessBase"]
[ECO "A48"]
[WhiteElo "2057"]
[BlackElo "2148"]
[PlyCount "78"]
[EventDate "2025.04.03"]
[EventType "swiss"]
[EventCountry "ISR"]
[SourceTitle "playchess.com"]
[Source "ChessBase"]
[SourceQuality "1"]
[TimeControl "5400+30"]

1. d4 {[%emt 0:00:08]} Nf6 {[%emt 0:00:17]} 2. Bf4 {[%emt 0:00:06]} g6 {[%emt 0:00:46]} 3. e3 {[%emt 0:00:14]} Bg7 {[%emt 0:00:08]} 4. Nf3 {[%emt 0:00:15]} d6 {[%emt 0:00:08]} 5. h3 {[%emt 0:00:08]} O-O {[%emt 0:00:09]} 6. Be2 {[%emt 0:00:35]} b6 {[%emt 0:00:30]} 7. a4 {[%emt 0:00:54]} a6 {[%emt 0:00:09]} 8. O-O {[%emt 0:02:44]} Nbd7 {[%emt 0:00:21]} 9. c3 {[%emt 0:01:41]} Bb7 {[%emt 0:00:09]} 10. Bh2 {[%emt 0:01:22]} Qe8 {[%emt 0:01:10]} 11. Nbd2 {[%emt 0:02:39]} e5 {[%emt 0:01:16]} 12. Qb3 {[%emt 0:02:41]} Ne4 {[%emt 0:06:02]} 13. Rfd1 {[%emt 0:06:23]} Nxd2 {[%emt 0:00:54]} 14. Rxd2 {[%emt 0:00:57]} Kh8 {[%emt 0:01:21]} 15. Qc4 {[%emt 0:04:29]} e4 {[%emt 0:02:31]} 16. Ne1 {[%emt 0:02:43]} Rc8 {[%emt 0:00:24]} 17. Nc2 {[%emt 0:03:54]} f5 {[%emt 0:05:04]} 18. Nb4 {[%emt 0:02:43]} Nb8 {[%emt 0:07:48]} 19. Qb3 {[%emt 0:07:19]} a5 {[%emt 0:00:30]} 20. Nd5 {[%emt 0:00:30]} g5 {[%emt 0:07:37]} 21. Rc1 {[%emt 0:13:21]} Nd7 {[%emt 0:01:25]} 22. c4 {[%emt 0:01:17]} Qf7 {[%emt 0:01:50]} 23. Qd1 {[%emt 0:02:09]} h6 {[%emt 0:18:25]} 24. Rdc2 {[%emt 0:03:56]} Nb8 {[%emt 0:02:57]} 25. b4 {[%emt 0:02:58]} Na6 {[%emt 0:02:42]} 26. b5 {[%emt 0:04:07]} Bxd5 {[%emt 0:02:15]} 27. cxd5 {[%emt 0:05:04]} Nb4 {[%emt 0:00:05]} 28. Bxd6 {[%emt 0:01:27]} Nxc2 {[%emt 0:00:02]} 29. Bxf8 {[%emt 0:00:12]} Bxf8 {[%emt 0:00:02]} 30. Qxc2 {[%emt 0:00:39]} Bd6 {[%emt 0:00:03]} 31. Rf1 {[%emt 0:04:15]} Re8 {[%emt 0:05:22]} 32. f3 {[%emt 0:08:11]} Qe7 {[%emt 0:00:19]} 33. fxe4 {[%emt 0:06:24]} Qxe4 {[%emt 0:00:09]} 34. Qxe4 {[%emt 0:00:56]} Rxe4 {[%emt 0:00:04]} 35. Kf2 {[%emt 0:07:31]} f4 {[%emt 0:00:12]} 36. exf4 {[%emt 0:01:38]} Rxd4 {[%emt 0:03:59]} 37. fxg5 {[%emt 0:00:25]} hxg5 {[%emt 0:00:05]} 38. Bd1 {[%emt 0:00:44]} Bc5 {[%emt 0:01:29]} 39. Kg3 {[%emt 0:00:32]} Bd6+ {[%emt 0:00:18]} 1/2-1/2

[Event "Israel Youth-ch U16 2025"]
[Site "Rishon Le Zion"]
[Date "2025.04.10"]
[Round "8.3"]
[White "Kirsch, Yahel David"]
[Black "Ribstein, Orel"]
[Result "1-0"]
[Annotator "ChessBase"]
[ECO "C07"]
[WhiteElo "1957"]
[BlackElo "2192"]
[PlyCount "97"]
[EventDate "2025.04.03"]
[EventType "swiss"]
[EventCountry "ISR"]
[SourceTitle "playchess.com"]
[Source "ChessBase"]
[SourceQuality "1"]
[TimeControl "5400+30"]

1. e4 {[%emt 0:00:03]} e6 {[%emt 0:00:17]} 2. d4 {[%emt 0:00:33]} d5 {[%emt 0:00:24]} 3. Nd2 {[%emt 0:00:31]} c5 {[%emt 0:01:07]} 4. Ngf3 {[%emt 0:00:42]} cxd4 {[%emt 0:01:00]} 5. Nxd4 {[%emt 0:00:32]} Nc6 {[%emt 0:00:34]} 6. Bb5 {[%emt 0:01:13]} Bd7 {[%emt 0:00:49]} 7. Nxc6 {[%emt 0:00:35]} bxc6 {[%emt 0:00:00]} 8. Bd3 {[%emt 0:00:25]} Qc7 {[%emt 0:00:18]} 9. Qe2 {[%emt 0:02:54]} Ne7 {[%emt 0:02:17]} 10. e5 {[%emt 0:04:53]} Ng6 {[%emt 0:02:58]} 11. Nf3 {[%emt 0:02:02]} Be7 {[%emt 0:00:11]} 12. h4 {[%emt 0:10:20]} f6 {[%emt 0:00:16]} 13. Bxg6+ {[%emt 0:08:14]} hxg6 {[%emt 0:00:02]} 14. Qd3 {[%emt 0:00:59]} g5 {[%emt 0:22:36]} 15. h5 {[%emt 0:18:25]} O-O-O {[%emt 0:07:10]} 16. Qa6+ {[%emt 0:10:47]} Qb7 {[%emt 0:05:55]} 17. Qxb7+ {[%emt 0:00:56]} Kxb7 {[%emt 0:00:01]} 18. g4 {[%emt 0:01:35]} c5 {[%emt 0:00:17]} 19. Bd2 {[%emt 0:04:09]} Bc6 {[%emt 0:19:09]} 20. O-O-O {[%emt 0:03:34]} d4 {[%emt 0:06:53]} 21. Rh3 {[%emt 0:00:10]} Bd5 {[%emt 0:00:43]} 22. b3 {[%emt 0:06:30]} Rhf8 {[%emt 0:10:07]} 23. exf6 {[%emt 0:06:15]} Rxf6 {[%emt 0:01:38]} 24. Ne5 {[%emt 0:10:02]} Rxf2 {[%emt 0:00:48]} 25. h6 {[%emt 0:01:37]} gxh6 {[%emt 0:02:58]} 26. Rxh6 {[%emt 0:00:06]} Ka6 {[%emt 0:03:22]} 27. Re1 {[%emt 0:03:23]} Re8 {[%emt 0:05:57]} 28. Nd3 {[%emt 0:01:22]} Rg2 {[%emt 0:03:37]} 29. Re5 {[%emt 0:00:40]} c4 {[%emt 0:00:53]} 30. Rxd5 {[%emt 0:00:38]} cxd3 {[%emt 0:01:38]} 31. Rxe6+ {[%emt 0:00:24]} Kb7 {[%emt 0:00:05]} 32. Rd7+ {[%emt 0:00:07]} Kc8 {[%emt 0:00:06]} 33. Rexe7 {[%emt 0:00:20]} Rh8 {[%emt 0:00:05]} 34. Rxa7 {[%emt 0:01:10]} Rh1+ {[%emt 0:00:23]} 35. Kb2 {[%emt 0:00:54]} Kb8 {[%emt 0:03:26]} 36. Bb4 {[%emt 0:00:28]} Rxc2+ {[%emt 0:00:00]} 37. Ka3 {[%emt 0:00:11]} Rc6 {[%emt 0:00:00]} 38. Rad7 {[%emt 0:01:15]} Ra6+ {[%emt 0:00:00]} 39. Ba5 {[%emt 0:00:19]} Rh8 {[%emt 0:00:00]} 40. Kb4 {[%emt 0:00:11]} Ra7 {[%emt 0:00:00]} 41. Rxa7 {[%emt 0:00:36]} d2 {[%emt 0:00:00]} 42. Bc7+ {[%emt 0:00:43]} Kxa7 {[%emt 0:00:00]} 43. Bf4+ {[%emt 0:00:01]} Kb6 {[%emt 0:00:45]} 44. Re6+ {[%emt 0:00:09]} Kb7 {[%emt 0:00:06]} 45. Bxd2 {[%emt 0:00:04]} Rh2 {[%emt 0:00:03]} 46. Bxg5 {[%emt 0:00:24]} Rxa2 {[%emt 0:00:03]} 47. Rd6 {[%emt 0:00:10]} Rg2 {[%emt 0:00:57]} 48. Rxd4 {[%emt 0:00:04]} Rg3 {[%emt 0:00:01]} 49. Bf6 {[%emt 0:00:34]} 1-0

[Event "Israel Youth-ch U16 2025"]
[Site "Rishon Le Zion"]
[Date "2025.04.10"]
[Round "8.4"]
[White "Magen, Ofek"]
[Black "Shefer, Uri"]
[Result "1/2-1/2"]
[Annotator "ChessBase"]
[ECO "D55"]
[WhiteElo "2115"]
[BlackElo "2265"]
[PlyCount "121"]
[EventDate "2025.04.03"]
[EventType "swiss"]
[EventCountry "ISR"]
[SourceTitle "playchess.com"]
[Source "ChessBase"]
[SourceQuality "1"]
[TimeControl "5400+30"]

1. d4 {[%emt 0:00:04]} Nf6 {[%emt 0:00:03]} 2. Nf3 {[%emt 0:00:55]} e6 {[%emt 0:00:18]} 3. c4 {[%emt 0:00:33]} b6 {[%emt 0:00:03]} 4. Nc3 {[%emt 0:00:04]} Bb7 {[%emt 0:00:14]} 5. Bg5 {[%emt 0:05:17]} d5 {[%emt 0:03:51]} 6. cxd5 exd5 {[%emt 0:00:16]} 7. e3 {[%emt 0:02:17]} Be7 {[%emt 0:02:19]} 8. Bd3 {[%emt 0:05:53]} O-O {[%emt 0:01:31]} 9. O-O {[%emt 0:01:18]} c5 {[%emt 0:06:24]} 10. Rc1 {[%emt 0:02:49]} h6 {[%emt 0:09:53]} 11. Bf4 {[%emt 0:20:21]} Nc6 {[%emt 0:07:15]} 12. Re1 {[%emt 0:01:42]} Re8 {[%emt 0:04:56]} 13. Ne5 {[%emt 0:14:40]} Bd6 {[%emt 0:07:23]} 14. Bb5 {[%emt 0:05:31]} Qc7 {[%emt 0:12:58]} 15. Nd3 {[%emt 0:13:32]} c4 {[%emt 0:15:02]} 16. Bxd6 {[%emt 0:01:15]} Qxd6 {[%emt 0:00:04]} 17. Bxc6 {[%emt 0:00:22]} Bxc6 {[%emt 0:01:20]} 18. Nf4 {[%emt 0:00:14]} b5 {[%emt 0:01:01]} 19. Qf3 {[%emt 0:00:20]} b4 {[%emt 0:04:22]} 20. Nce2 {[%emt 0:00:04]} Bd7 {[%emt 0:00:52]} 21. Nh5 {[%emt 0:03:10]} Ne4 {[%emt 0:01:03]} 22. Nhg3 {[%emt 0:01:51]} Nf6 {[%emt 0:05:08]} 23. h3 {[%emt 0:02:23]} g6 {[%emt 0:01:28]} 24. Qf4 {[%emt 0:00:44]} Qxf4 {[%emt 0:01:18]} 25. Nxf4 {[%emt 0:00:01]} Rac8 {[%emt 0:00:21]} 26. Nfe2 {[%emt 0:01:34]} a5 {[%emt 0:00:48]} 27. Nf1 {[%emt 0:03:21]} Ne4 {[%emt 0:02:59]} 28. f3 {[%emt 0:00:05]} Nd6 {[%emt 0:00:02]} 29. Kf2 {[%emt 0:00:08]} Kg7 {[%emt 0:00:28]} 30. Nd2 {[%emt 0:00:45]} Bc6 {[%emt 0:02:51]} 31. g4 {[%emt 0:00:56]} Bb7 {[%emt 0:01:37]} 32. h4 {[%emt 0:02:06]} a4 {[%emt 0:00:33]} 33. a3 {[%emt 0:01:27]} Ba8 {[%emt 0:02:19]} 34. axb4 {[%emt 0:01:43]} Rb8 {[%emt 0:00:16]} 35. Ra1 {[%emt 0:00:37]} Rxb4 {[%emt 0:00:08]} 36. Ra2 {[%emt 0:00:03]} Reb8 {[%emt 0:00:25]} 37. Rb1 {[%emt 0:00:31]} Nb5 {[%emt 0:03:04]} 38. Rba1 {[%emt 0:00:28]} Bc6 {[%emt 0:00:25]} 39. e4 {[%emt 0:00:44]} Nd6 {[%emt 0:01:17]} 40. Ke3 {[%emt 0:03:40]} dxe4 {[%emt 0:00:50]} 41. fxe4 {[%emt 0:00:21]} Bd7 {[%emt 0:01:03]} 42. e5 {[%emt 0:07:41]} Ne8 {[%emt 0:00:51]} 43. Nc3 {[%emt 0:00:00]} Nc7 {[%emt 0:00:35]} 44. d5 {[%emt 0:00:00]} Rxb2 {[%emt 0:01:43]} 45. Rxb2 {[%emt 0:00:00]} Rxb2 {[%emt 0:00:30]} 46. Nxc4 {[%emt 0:00:00]} Rg2 {[%emt 0:00:05]} 47. d6 {[%emt 0:00:00]} Rg3+ {[%emt 0:00:17]} 48. Kd2 {[%emt 0:00:00]} Ne6 {[%emt 0:00:34]} 49. Nb6 {[%emt 0:00:00]} Bc6 {[%emt 0:01:57]} 50. Ncxa4 {[%emt 0:00:00]} Rxg4 {[%emt 0:00:30]} 51. Nc3 {[%emt 0:02:09]} Rxh4 52. Re1 {[%emt 0:00:38]} Rb4 53. Rb1 {[%emt 0:02:43]} Rxb1 {[%emt 0:00:00]} 54. Nxb1 {[%emt 0:00:30]} f6 55. Nc4 {[%emt 0:00:00]} fxe5 {[%emt 0:00:02]} 56. Nxe5 {[%emt 0:00:00]} Kf6 {[%emt 0:00:08]} 57. Nxc6 {[%emt 0:00:00]} Nc5 {[%emt 0:00:51]} 58. Nc3 {[%emt 0:00:06]} Ke6 {[%emt 0:00:11]} 59. Nd8+ {[%emt 0:01:16]} Kxd6 {[%emt 0:00:05]} 60. Nf7+ {[%emt 0:00:03]} Ke6 {[%emt 0:00:17]} 61. Nxh6 {[%emt 0:00:05]} 1/2-1/2